[Event "7° Rencontres Internationales des Echecs Francophones"]
[Site "PARIS, France"]
[Date "2019.08.10"]
[Round "11.3"]
[White "Moussard, Jules"]
[Black "Vedmediuc, Serghei"]
[Result "0-1"]
[TimeControl "90'+30' + 30seconds/move"]
[WhiteElo "2613"]
[BlackElo "2469"]

1. e4 {[%clk 00:05:05]} c5 {[%clk 00:05:06]} {[%emt 00:00:02]} 2. Nf3 {[%clk
00:05:07]} Nc6 {[%clk 00:05:08]} 3. Nc3 {[%clk 00:05:08]} {[%emt 00:00:03]} e6
{[%clk 00:05:10]} {[%emt 00:00:01]} 4. d4 {[%clk 00:05:06]} {[%emt 00:00:05]}
cxd4 {[%clk 00:05:12]} 5. Nxd4 {[%clk 00:05:08]} Qc7 {[%clk 00:05:15]} 6. Be3
{[%clk 00:05:10]} {[%emt 00:00:01]} Nf6 {[%clk 00:05:16]} {[%emt 00:00:02]} 7.
f4 {[%clk 00:05:04]} {[%emt 00:00:08]} d6 {[%clk 00:04:54]} {[%emt 00:00:26]} 8.
Be2 {[%clk 00:04:51]} {[%emt 00:00:17]} Be7 {[%clk 00:04:54]} {[%emt 00:00:02]}
9. O-O {[%clk 00:04:42]} {[%emt 00:00:12]} O-O {[%clk 00:04:55]} {[%emt
00:00:01]} 10. Qe1 {[%clk 00:04:25]} {[%emt 00:00:21]} Nxd4 {[%clk 00:04:48]}
{[%emt 00:00:11]} 11. Bxd4 {[%clk 00:04:27]} {[%emt 00:00:02]} e5 {[%clk
00:04:50]} 12. fxe5 {[%clk 00:04:05]} {[%emt 00:00:25]} dxe5 {[%clk 00:04:52]}
13. Qg3 {[%clk 00:04:02]} {[%emt 00:00:06]} Bc5 {[%clk 00:04:54]} 14. Bxc5
{[%clk 00:04:00]} {[%emt 00:00:05]} Qxc5+ {[%clk 00:04:56]} 15. Kh1 {[%clk
00:04:03]} Kh8 {[%clk 00:04:59]} 16. Rxf6 {[%clk 00:03:43]} {[%emt 00:00:24]}
gxf6 {[%clk 00:05:01]} 17. Nd5 {[%clk 00:03:45]} {[%emt 00:00:01]} Rg8 {[%clk
00:04:52]} {[%emt 00:00:12]} 18. Qh4 {[%clk 00:03:46]} {[%emt 00:00:02]} Be6
{[%clk 00:04:49]} {[%emt 00:00:06]} 19. Nxf6 {[%clk 00:03:36]} {[%emt
00:00:13]} Rg7 {[%clk 00:04:51]} 20. Bd3 {[%clk 00:03:25]} {[%emt 00:00:15]}
Qd4 {[%clk 00:04:41]} {[%emt 00:00:12]} 21. Rf1 {[%clk 00:02:50]} {[%emt
00:00:38]} Qxb2 {[%clk 00:04:42]} {[%emt 00:00:02]} 22. h3 {[%clk 00:02:52]}
{[%emt 00:00:01]} Rc8 {[%clk 00:04:32]} {[%emt 00:00:13]} 23. Kh2 {[%clk
00:02:47]} {[%emt 00:00:08]} Qa3 {[%clk 00:04:21]} {[%emt 00:00:13]} 24. Rf3
{[%clk 00:02:22]} {[%emt 00:00:30]} Qc1 {[%clk 00:03:56]} {[%emt 00:00:28]} 25.
Qf2 {[%clk 00:02:15]} {[%emt 00:00:10]} Qg5 {[%clk 00:03:51]} {[%emt 00:00:07]}
26. h4 {[%clk 00:02:14]} {[%emt 00:00:04]} Qh6 {[%clk 00:03:49]} {[%emt
00:00:05]} 27. a4 {[%clk 00:01:57]} {[%emt 00:00:21]} b6 {[%clk 00:03:51]}
{[%emt 00:00:01]} 28. g3 {[%clk 00:01:58]} {[%emt 00:00:03]} Rd8 {[%clk
00:03:43]} {[%emt 00:00:10]} 29. a5 {[%clk 00:01:55]} {[%emt 00:00:06]} Rb8
{[%clk 00:03:44]} 30. axb6 {[%clk 00:01:50]} {[%emt 00:00:09]} axb6 {[%clk
00:03:47]} 31. Qe1 {[%clk 00:01:50]} {[%emt 00:00:03]} Rg6 {[%clk 00:03:39]}
{[%emt 00:00:10]} 32. Nd5 {[%clk 00:01:50]} {[%emt 00:00:04]} Rbg8 {[%clk
00:03:31]} {[%emt 00:00:11]} 33. Qf2 {[%clk 00:00:22]} {[%emt 00:01:31]} Rxg3
{[%clk 00:03:31]} {[%emt 00:00:03]} 34. Rxg3 {[%clk 00:00:24]} Qxh4+ 35. Kg2
Qh3+ {[%clk 00:03:35]} 36. Kf3 {[%clk 00:00:29]} Bg4+ {[%emt 00:00:26]} 37. Ke3
Qh6+ {[%clk 00:03:13]} {[%emt 00:00:01]} 38. Nf4 {[%clk 00:00:34]} exf4+ {[%clk
00:03:13]} {[%emt 00:00:04]} 39. Qxf4 {[%clk 00:00:37]} Qxf4+ {[%clk 00:03:09]}
{[%emt 00:00:07]} 40. Kxf4 {[%clk 00:00:39]} Be6 {[%clk 00:03:11]} 41. Re3
{[%clk 00:00:33]} {[%emt 00:00:09]} Rc8 {[%clk 00:02:49]} {[%emt 00:00:25]} 42.
Ke5 {[%clk 00:00:31]} {[%emt 00:00:05]} Kg7 {[%clk 00:02:41]} {[%emt 00:00:11]}
43. Rg3+ {[%clk 00:00:33]} Kf8 {[%clk 00:02:43]} 44. Rg1 {[%clk 00:00:15]}
{[%emt 00:00:23]} Ke7 {[%clk 00:02:43]} {[%emt 00:00:02]} 45. Rg7 {[%clk
00:00:16]} {[%emt 00:00:02]} Rh8 {[%clk 00:02:39]} {[%emt 00:00:07]} 46. Kf4
{[%clk 00:00:12]} {[%emt 00:00:09]} h5 {[%clk 00:02:41]} 47. e5 {[%clk
00:00:11]} {[%emt 00:00:04]} h4 {[%clk 00:02:43]} 48. Rg2 {[%clk 00:00:13]} h3
{[%emt 00:00:02]} 49. Rh2 Rh4+ {[%clk 00:02:42]} {[%emt 00:00:05]} 50. Kg3
{[%clk 00:00:18]} {[%emt 00:00:01]} Rd4 {[%clk 00:02:37]} {[%emt 00:00:09]} 51.
Kf2 {[%clk 00:00:19]} {[%emt 00:00:02]} Rd5 {[%clk 00:02:37]} {[%emt 00:00:03]}
52. Kg3 {[%clk 00:00:11]} {[%emt 00:00:10]} Rxe5 {[%clk 00:02:38]} {[%emt
00:00:02]} 53. Rh1 {[%clk 00:00:14]} Rg5+ {[%clk 00:02:37]} {[%emt 00:00:04]}
54. Kh4 {[%clk 00:00:13]} {[%emt 00:00:04]} Rg2 {[%clk 00:02:36]} {[%emt
00:00:03]} 55. Rb1 {[%clk 00:00:10]} {[%emt 00:00:07]} h2 {[%clk 00:02:33]}
{[%emt 00:00:05]} 56. Rh1 {[%clk 00:00:11]} {[%emt 00:00:02]} f5 {[%clk
00:02:26]} {[%emt 00:00:10]} 57. Kh3 {[%clk 00:00:13]} {[%emt 00:00:01]} Rd2
{[%clk 00:02:24]} {[%emt 00:00:04]} 58. Kg3 {[%clk 00:00:16]} {[%emt 00:00:02]}
Bd5 {[%clk 00:02:20]} {[%emt 00:00:07]} 59. Re1+ {[%clk 00:00:16]} {[%emt
00:00:02]} Kd6 {[%clk 00:02:16]} {[%emt 00:00:07]} 60. Bxf5 {[%clk 00:00:07]}
{[%emt 00:00:12]} h1=Q {[%clk 00:02:16]} {[%emt 00:00:03]} 0-1